[Event "Titled Tuesday Blitz June 6 Late 2023"]
[White "Della Morte, German"]
[Black "Kejzar, Petra"]
[WhiteFideId "113522"]
[BlackFideId "14610213"]
[WhiteElo "2306"]
[BlackElo "2089"]
[Result "1-0"]
[Round "6"]
[TimeControl "180+2"]
[Date "2023.06.07"]
[WhiteClock "0:01:58"]
[BlackClock "0:01:14"]
[Board "111"]

1. e4 {[%clk 0:03:00]}  e5 {[%clk 0:02:59]} 2. Nf3 {[%clk 0:03:00]}  Nc6 {[%clk 0:02:59]} 3. Bb5 {[%clk 0:03:00]}  a6 {[%clk 0:02:59]} 4. Ba4 {[%clk 0:03:00]}  Bc5 {[%clk 0:02:59]} 5. O-O {[%clk 0:03:00]}  Nge7 {[%clk 0:03:00]} 6. Nc3 {[%clk 0:03:00]}  O-O {[%clk 0:02:57]} 7. d3 {[%clk 0:02:58]}  d6 {[%clk 0:02:56]} 8. Bb3 {[%clk 0:02:57]}  Be6 {[%clk 0:02:55]} 9. h3 {[%clk 0:02:57]}  b5 {[%clk 0:02:52]} 10. Bg5 {[%clk 0:02:55]}  Qd7 {[%clk 0:02:50]} 11. Be3 {[%clk 0:02:53]}  f6 {[%clk 0:02:50]} 12. d4 {[%clk 0:02:52]}  Bxd4 {[%clk 0:02:44]} 13. Nxd4 {[%clk 0:02:51]}  exd4 {[%clk 0:02:44]} 14. Bxd4 {[%clk 0:02:52]}  Nxd4 {[%clk 0:02:43]} 15. Qxd4 {[%clk 0:02:52]}  c5 {[%clk 0:02:37]} 16. Bxe6+ {[%clk 0:02:52]}  Qxe6 {[%clk 0:02:38]} 17. Qe3 {[%clk 0:02:52]}  Rfe8 {[%clk 0:02:38]} 18. Rad1 {[%clk 0:02:50]}  Nc6 {[%clk 0:02:38]} 19. f3 {[%clk 0:02:50]}  Nd4 {[%clk 0:02:37]} 20. Qf2 {[%clk 0:02:50]}  Rad8 {[%clk 0:02:19]} 21. Nd5 {[%clk 0:02:50]}  Rd7 {[%clk 0:02:18]} 22. c3 {[%clk 0:02:48]}  Nc6 {[%clk 0:02:17]} 23. Rd2 {[%clk 0:02:47]}  Rf7 {[%clk 0:02:17]} 24. Rfd1 {[%clk 0:02:47]}  Ne5 {[%clk 0:02:17]} 25. Nf4 {[%clk 0:02:44]}  Qe7 {[%clk 0:02:17]} 26. Rxd6 {[%clk 0:02:44]}  Nc4 {[%clk 0:02:16]} 27. R6d5 {[%clk 0:02:39]}  Qc7 {[%clk 0:02:10]} 28. Nd3 {[%clk 0:02:37]}  Qa5 {[%clk 0:02:04]} 29. a3 {[%clk 0:02:33]}  Ne5 {[%clk 0:01:49]} 30. Nxe5 {[%clk 0:02:32]}  fxe5 {[%clk 0:01:47]} 31. Qxc5 {[%clk 0:02:31]}  h6 {[%clk 0:01:45]} 32. Rxe5 {[%clk 0:02:28]}  Ref8 {[%clk 0:01:45]} 33. Red5 {[%clk 0:02:23]}  Qa4 {[%clk 0:01:45]} 34. R5d2 {[%clk 0:02:20]}  Qb3 {[%clk 0:01:45]} 35. Qd5 {[%clk 0:02:19]}  Qa4 {[%clk 0:01:45]} 36. e5 {[%clk 0:02:17]}  Kh8 {[%clk 0:01:44]} 37. Re1 {[%clk 0:02:14]}  Re7 {[%clk 0:01:43]} 38. e6 {[%clk 0:02:14]}  Qf4 {[%clk 0:01:43]} 39. Rde2 {[%clk 0:02:12]}  Rfe8 {[%clk 0:01:43]} 40. Re4 {[%clk 0:02:10]}  Qf6 {[%clk 0:01:42]} 41. Re5 {[%clk 0:02:09]}  Qf4 {[%clk 0:01:42]} 42. Qd4 {[%clk 0:02:07]}  Qf6 {[%clk 0:01:41]} 43. Qe4 {[%clk 0:02:06]}  Qf8 {[%clk 0:01:35]} 44. f4 {[%clk 0:02:06]}  Qf6 {[%clk 0:01:33]} 45. f5 {[%clk 0:02:07]}  Qg5 {[%clk 0:01:33]} 46. Qe3 {[%clk 0:02:06]}  Qf6 {[%clk 0:01:32]} 47. Qd4 {[%clk 0:02:02]}  Qg5 {[%clk 0:01:32]} 48. R1e3 {[%clk 0:02:01]}  Qf6 {[%clk 0:01:24]} 49. Rf3 {[%clk 0:01:59]}  Qg5 {[%clk 0:01:23]} 50. f6 {[%clk 0:01:59]}  Qc1+ {[%clk 0:01:23]} 51. Rf1 {[%clk 0:01:59]}  Qxb2 {[%clk 0:01:21]} 52. fxe7 {[%clk 0:01:59]}  Qxa3 {[%clk 0:01:19]} 53. Rf8+ {[%clk 0:01:56]}  Rxf8 {[%clk 0:01:19]} 54. exf8=Q+ {[%clk 0:01:56]}  Qxf8 {[%clk 0:01:20]} 55. e7 {[%clk 0:01:57]}  Qf6 {[%clk 0:01:13]} 56. e8=Q+ {[%clk 0:01:57]}  Kh7 {[%clk 0:01:14]} 57. Qe4+ {[%clk 0:01:57]}  g6 {[%clk 0:01:14]} 58. Re7+ {[%clk 0:01:57]}  Qxe7 {[%clk 0:01:14]} 59. Q4xe7# {[%clk 0:01:58]} 1-0


[Site "https://www.chess.com"]

[Event "Titled Tuesday Blitz June 6 Late 2023"]
[White "Jaivardhan Raj"]
[Black "QuiesPrecatio"]
[WhiteFideId "25744437"]
[WhiteElo "1772"]
[BlackElo "2442"]
[Result "1/2-1/2"]
[Round "6"]
[TimeControl "180+2"]
[Date "2023.06.07"]
[WhiteClock "0:00:12"]
[BlackClock "0:00:18"]
[Board "114"]

1. e4 {[%clk 0:03:00]}  e6 {[%clk 0:02:54]} 2. d4 {[%clk 0:03:00]}  d5 {[%clk 0:02:55]} 3. Nd2 {[%clk 0:03:00]}  c5 {[%clk 0:02:51]} 4. exd5 {[%clk 0:02:58]}  cxd4 {[%clk 0:02:51]} 5. dxe6 {[%clk 0:02:56]}  Bxe6 {[%clk 0:02:50]} 6. Ngf3 {[%clk 0:02:55]}  Nc6 {[%clk 0:02:51]} 7. Bb5 {[%clk 0:02:56]}  Be7 {[%clk 0:02:46]} 8. O-O {[%clk 0:02:56]}  Bf6 {[%clk 0:02:46]} 9. Ne4 {[%clk 0:02:55]}  Qd5 {[%clk 0:02:36]} 10. Nxf6+ {[%clk 0:02:39]}  Nxf6 {[%clk 0:02:37]} 11. Bxc6+ {[%clk 0:02:34]}  bxc6 {[%clk 0:02:37]} 12. Qxd4 {[%clk 0:02:34]}  O-O {[%clk 0:02:33]} 13. Qxd5 {[%clk 0:02:32]}  Bxd5 {[%clk 0:02:34]} 14. Nd4 {[%clk 0:02:29]}  c5 {[%clk 0:02:30]} 15. Nf5 {[%clk 0:02:25]}  Rfe8 {[%clk 0:02:27]} 16. Be3 {[%clk 0:02:23]}  c4 {[%clk 0:02:04]} 17. Rad1 {[%clk 0:02:14]}  Rab8 {[%clk 0:01:55]} 18. Bxa7 {[%clk 0:02:08]}  Rxb2 {[%clk 0:01:52]} 19. Bd4 {[%clk 0:02:09]}  Rb5 {[%clk 0:01:47]} 20. Bxf6 {[%clk 0:01:55]}  gxf6 {[%clk 0:01:47]} 21. Nd6 {[%clk 0:01:56]}  Reb8 {[%clk 0:01:44]} 22. Nxb5 {[%clk 0:01:56]}  Rxb5 {[%clk 0:01:45]} 23. Rfe1 {[%clk 0:01:53]}  Be6 {[%clk 0:01:43]} 24. Rd8+ {[%clk 0:01:44]}  Kg7 {[%clk 0:01:43]} 25. c3 {[%clk 0:01:28]}  Ra5 {[%clk 0:01:24]} 26. Rd2 {[%clk 0:00:56]}  Ra3 {[%clk 0:01:24]} 27. Rc1 {[%clk 0:00:55]}  Bf5 {[%clk 0:01:10]} 28. Rb2 {[%clk 0:00:47]}  Bd3 {[%clk 0:01:09]} 29. f3 {[%clk 0:00:46]}  Kg6 {[%clk 0:01:07]} 30. Kf2 {[%clk 0:00:46]}  Kf5 {[%clk 0:01:07]} 31. Rb5+ {[%clk 0:00:41]}  Ke6 {[%clk 0:01:08]} 32. Rb2 {[%clk 0:00:37]}  Ke5 {[%clk 0:01:07]} 33. Ke3 {[%clk 0:00:34]}  f5 {[%clk 0:01:07]} 34. f4+ {[%clk 0:00:34]}  Kd5 {[%clk 0:01:07]} 35. Rb5+ {[%clk 0:00:32]}  Kc6 {[%clk 0:01:07]} 36. Rb2 {[%clk 0:00:31]}  Kc5 {[%clk 0:01:02]} 37. g3 {[%clk 0:00:30]}  h5 {[%clk 0:00:56]} 38. Rd2 {[%clk 0:00:28]}  f6 {[%clk 0:00:53]} 39. Rxd3 {[%clk 0:00:26]}  cxd3 {[%clk 0:00:54]} 40. Kxd3 {[%clk 0:00:26]}  Rxa2 {[%clk 0:00:55]} 41. Rh1 {[%clk 0:00:21]}  Rg2 {[%clk 0:00:45]} 42. Ke3 {[%clk 0:00:15]}  Kc4 {[%clk 0:00:43]} 43. Kf3 {[%clk 0:00:15]}  Rc2 {[%clk 0:00:42]} 44. h4 {[%clk 0:00:14]}  Rxc3+ {[%clk 0:00:42]} 45. Kg2 {[%clk 0:00:14]}  Kd4 {[%clk 0:00:41]} 46. Rd1+ {[%clk 0:00:13]}  Ke4 {[%clk 0:00:40]} 47. Re1+ {[%clk 0:00:13]}  Re3 {[%clk 0:00:36]} 48. Ra1 {[%clk 0:00:13]}  Re2+ {[%clk 0:00:35]} 49. Kh3 {[%clk 0:00:14]}  Kf3 {[%clk 0:00:34]} 50. Ra3+ {[%clk 0:00:14]}  Re3 {[%clk 0:00:35]} 51. Ra1 {[%clk 0:00:14]}  Kf2 {[%clk 0:00:33]} 52. Ra2+ {[%clk 0:00:14]}  Re2 {[%clk 0:00:34]} 53. Ra1 {[%clk 0:00:13]}  Re1 {[%clk 0:00:26]} 54. Ra2+ {[%clk 0:00:13]}  Kf3 {[%clk 0:00:26]} 55. Ra3+ {[%clk 0:00:13]}  Re3 {[%clk 0:00:27]} 56. Ra1 {[%clk 0:00:12]}  Kf2 {[%clk 0:00:18]} 57. Ra2+ {[%clk 0:00:12]}  Ke1 {[%clk 0:00:18]} 58. Ra1+ {[%clk 0:00:12]}  Ke2 {[%clk 0:00:18]} 59. Ra2+ {[%clk 0:00:13]}  Kf3 {[%clk 0:00:18]} 60. Ra1 {[%clk 0:00:12]} 1/2-1/2


[Site "https://www.chess.com"]

[Event "Titled Tuesday Blitz June 6 Late 2023"]
[White "Francisco_Ferrari"]
[Black "Kaplan, Avi Harrison"]
[BlackFideId "30934559"]
[WhiteElo "2190"]
[BlackElo "1983"]
[Result "0-1"]
[Round "6"]
[TimeControl "180+2"]
[Date "2023.06.07"]
[WhiteClock "0:00:01"]
[BlackClock "0:00:37"]
[Board "116"]

1. Nf3 {[%clk 0:03:00]}  b6 {[%clk 0:03:00]} 2. a4 {[%clk 0:03:00]}  Bb7 {[%clk 0:03:00]} 3. e3 {[%clk 0:02:58]}  f5 {[%clk 0:03:00]} 4. d4 {[%clk 0:02:55]}  Nf6 {[%clk 0:02:58]} 5. Be2 {[%clk 0:02:50]}  e6 {[%clk 0:02:58]} 6. Nbd2 {[%clk 0:02:50]}  Ne4 {[%clk 0:02:57]} 7. a5 {[%clk 0:02:41]}  Be7 {[%clk 0:02:52]} 8. Nxe4 {[%clk 0:02:36]}  fxe4 {[%clk 0:02:52]} 9. Nd2 {[%clk 0:02:35]}  O-O {[%clk 0:02:49]} 10. O-O {[%clk 0:02:35]}  d6 {[%clk 0:02:41]} 11. c4 {[%clk 0:02:31]}  Nd7 {[%clk 0:02:40]} 12. b4 {[%clk 0:02:31]}  Qe8 {[%clk 0:02:31]} 13. Bh5 {[%clk 0:02:21]}  g6 {[%clk 0:02:29]} 14. Bg4 {[%clk 0:02:17]}  Qf7 {[%clk 0:02:25]} 15. d5 {[%clk 0:02:11]}  exd5 {[%clk 0:02:14]} 16. Bxd7 {[%clk 0:02:01]}  Bf6 {[%clk 0:02:15]} 17. Qg4 {[%clk 0:02:01]}  Bc8 {[%clk 0:01:48]} 18. Bxc8 {[%clk 0:01:59]}  Raxc8 {[%clk 0:01:49]} 19. Rb1 {[%clk 0:01:54]}  dxc4 {[%clk 0:01:48]} 20. Nxe4 {[%clk 0:01:44]}  Be5 {[%clk 0:01:48]} 21. f4 {[%clk 0:01:38]}  Bg7 {[%clk 0:01:42]} 22. Ng5 {[%clk 0:01:29]}  Qf5 {[%clk 0:01:41]} 23. Qxf5 {[%clk 0:01:25]}  Rxf5 {[%clk 0:01:42]} 24. axb6 {[%clk 0:01:12]}  cxb6 {[%clk 0:01:40]} 25. e4 {[%clk 0:01:04]}  Rb5 {[%clk 0:01:36]} 26. Ne6 {[%clk 0:01:02]}  Bc3 {[%clk 0:01:31]} 27. f5 {[%clk 0:00:48]}  Rxb4 {[%clk 0:01:22]} 28. Rxb4 {[%clk 0:00:47]}  Bxb4 {[%clk 0:01:22]} 29. f6 {[%clk 0:00:47]}  Kf7 {[%clk 0:01:16]} 30. Ng5+ {[%clk 0:00:46]}  Kf8 {[%clk 0:01:12]} 31. f7 {[%clk 0:00:34]}  d5 {[%clk 0:01:12]} 32. Ne6+ {[%clk 0:00:26]}  Ke7 {[%clk 0:01:11]} 33. f8=Q+ {[%clk 0:00:26]}  Rxf8 {[%clk 0:01:12]} 34. Nxf8 {[%clk 0:00:27]}  d4 {[%clk 0:01:12]} 35. Bg5+ {[%clk 0:00:26]}  Kd6 {[%clk 0:01:06]} 36. Rf6+ {[%clk 0:00:21]}  Ke5 {[%clk 0:01:05]} 37. Rf4 {[%clk 0:00:09]}  d3 {[%clk 0:00:57]} 38. Nd7+ {[%clk 0:00:07]}  Kd6 {[%clk 0:00:53]} 39. Nf6 {[%clk 0:00:07]}  d2 {[%clk 0:00:45]} 40. Rf1 {[%clk 0:00:07]}  c3 {[%clk 0:00:46]} 41. Nd5 {[%clk 0:00:08]}  c2 {[%clk 0:00:44]} 42. Nxb4 {[%clk 0:00:06]}  d1=Q {[%clk 0:00:44]} 43. Bf4+ {[%clk 0:00:02]}  Ke6 {[%clk 0:00:43]} 44. Nd5 {[%clk 0:00:02]}  Qd4+ {[%clk 0:00:38]} 45. Be3 {[%clk 0:00:01]}  Qxe4 {[%clk 0:00:38]} 46. Rf6+ {[%clk 0:00:01]}  Kxd5 {[%clk 0:00:37]} 0-1


[Site "https://www.chess.com"]

[Event "Titled Tuesday Blitz June 6 Late 2023"]
[White "Kozelov, Roman"]
[Black "Cluke86"]
[WhiteFideId "14133377"]
[WhiteElo "2149"]
[BlackElo "2150"]
[Result "1-0"]
[Round "6"]
[TimeControl "180+2"]
[Date "2023.06.07"]
[WhiteClock "0:01:37"]
[BlackClock "0:00:40"]
[Board "118"]

1. e4 {[%clk 0:02:56]}  d6 {[%clk 0:02:59]} 2. d4 {[%clk 0:02:55]}  Nf6 {[%clk 0:02:59]} 3. Nc3 {[%clk 0:02:56]}  e5 {[%clk 0:02:59]} 4. dxe5 {[%clk 0:02:56]}  dxe5 {[%clk 0:03:00]} 5. Qxd8+ {[%clk 0:02:56]}  Kxd8 {[%clk 0:03:00]} 6. Nf3 {[%clk 0:02:56]}  Nbd7 {[%clk 0:02:52]} 7. Bc4 {[%clk 0:02:55]}  Ke8 {[%clk 0:02:51]} 8. Ng5 {[%clk 0:02:54]}  Bb4 {[%clk 0:02:46]} 9. Bxf7+ {[%clk 0:02:51]}  Ke7 {[%clk 0:02:46]} 10. Bb3 {[%clk 0:02:45]}  h6 {[%clk 0:02:39]} 11. Nf3 {[%clk 0:02:45]}  Nxe4 {[%clk 0:02:37]} 12. O-O {[%clk 0:02:43]}  Nxc3 {[%clk 0:02:35]} 13. bxc3 {[%clk 0:02:43]}  Bxc3 {[%clk 0:02:35]} 14. Rb1 {[%clk 0:02:44]}  Nc5 {[%clk 0:02:30]} 15. Ba3 {[%clk 0:02:43]}  b6 {[%clk 0:02:26]} 16. Bxc5+ {[%clk 0:02:39]}  bxc5 {[%clk 0:02:27]} 17. Bd5 {[%clk 0:02:39]}  Ba6 {[%clk 0:02:23]} 18. Bxa8 {[%clk 0:02:33]}  Bxf1 {[%clk 0:02:14]} 19. Kxf1 {[%clk 0:02:34]}  Rxa8 {[%clk 0:02:13]} 20. Rb3 {[%clk 0:02:30]}  Ba5 {[%clk 0:02:02]} 21. Nxe5 {[%clk 0:02:29]}  Bb6 {[%clk 0:01:55]} 22. Nc4 {[%clk 0:02:22]}  Rd8 {[%clk 0:01:51]} 23. Re3+ {[%clk 0:02:21]}  Kf6 {[%clk 0:01:49]} 24. Ke2 {[%clk 0:02:21]}  Rd4 {[%clk 0:01:47]} 25. Nd2 {[%clk 0:02:13]}  Ra4 {[%clk 0:01:36]} 26. a3 {[%clk 0:02:11]}  c4 {[%clk 0:01:32]} 27. Rf3+ {[%clk 0:02:11]}  Ke7 {[%clk 0:01:31]} 28. Ne4 {[%clk 0:02:09]}  Bd4 {[%clk 0:01:25]} 29. Kd2 {[%clk 0:01:53]}  Bb2 {[%clk 0:01:03]} 30. Nc5 {[%clk 0:01:44]}  Rxa3 {[%clk 0:01:01]} 31. Rf4 {[%clk 0:01:41]}  c3+ {[%clk 0:00:46]} 32. Kd3 {[%clk 0:01:41]}  Ra1 {[%clk 0:00:45]} 33. Re4+ {[%clk 0:01:37]}  Kd6 {[%clk 0:00:44]} 34. Kc4 {[%clk 0:01:37]}  a5 {[%clk 0:00:40]} 35. Re6# {[%clk 0:01:37]} 1-0


[Site "https://www.chess.com"]

[Event "Titled Tuesday Blitz June 6 Late 2023"]
[White "Kornyukov, Alexey"]
[Black "zsizsi99"]
[WhiteFideId "4150457"]
[WhiteElo "2352"]
[BlackElo "2419"]
[Result "0-1"]
[Round "6"]
[TimeControl "180+2"]
[Date "2023.06.07"]
[WhiteClock "0:01:28"]
[BlackClock "0:00:53"]
[Board "119"]

1. d4 {[%clk 0:03:00]}  Nf6 {[%clk 0:02:59]} 2. c4 {[%clk 0:03:00]}  e6 {[%clk 0:02:59]} 3. Nc3 {[%clk 0:02:59]}  Bb4 {[%clk 0:02:58]} 4. f3 {[%clk 0:02:58]}  c5 {[%clk 0:02:51]} 5. d5 {[%clk 0:02:56]}  b5 {[%clk 0:02:45]} 6. e4 {[%clk 0:02:56]}  bxc4 {[%clk 0:02:30]} 7. Bxc4 {[%clk 0:02:57]}  Nxd5 {[%clk 0:02:22]} 8. Bxd5 {[%clk 0:02:56]}  exd5 {[%clk 0:02:22]} 9. Qxd5 {[%clk 0:02:52]}  O-O {[%clk 0:02:04]} 10. Ne2 {[%clk 0:02:38]}  Qb6 {[%clk 0:01:53]} 11. Be3 {[%clk 0:02:27]}  Bb7 {[%clk 0:01:45]} 12. Qd2 {[%clk 0:02:27]}  Nc6 {[%clk 0:01:38]} 13. a3 {[%clk 0:02:23]}  Bxc3 {[%clk 0:01:27]} 14. Qxc3 {[%clk 0:02:24]}  d6 {[%clk 0:01:23]} 15. O-O {[%clk 0:02:21]}  Ba6 {[%clk 0:01:21]} 16. Rf2 {[%clk 0:02:18]}  Rab8 {[%clk 0:01:21]} 17. b4 {[%clk 0:02:09]}  cxb4 {[%clk 0:01:09]} 18. axb4 {[%clk 0:01:46]}  Qb7 {[%clk 0:00:58]} 19. Nd4 {[%clk 0:01:28]}  Rfc8 {[%clk 0:00:53]} 0-1


[Site "https://www.chess.com"]

[Event "Titled Tuesday Blitz June 6 Late 2023"]
[White "Ricaurte Lopez, Juan Carlos"]
[Black "Romero Ruscalleda, Josep"]
[WhiteFideId "3600327"]
[BlackFideId "2231859"]
[WhiteElo "2200"]
[BlackElo "2183"]
[Result "0-1"]
[Round "6"]
[TimeControl "180+2"]
[Date "2023.06.07"]
[WhiteClock "0:00:04"]
[BlackClock "0:00:10"]
[Board "120"]

1. e4 {[%clk 0:02:59]}  g6 {[%clk 0:03:00]} 2. d4 {[%clk 0:02:58]}  Bg7 {[%clk 0:03:01]} 3. Nc3 {[%clk 0:02:57]}  d6 {[%clk 0:03:02]} 4. Be3 {[%clk 0:02:56]}  a6 {[%clk 0:03:02]} 5. Qd2 {[%clk 0:02:55]}  b5 {[%clk 0:03:02]} 6. f4 {[%clk 0:02:51]}  Bb7 {[%clk 0:03:01]} 7. Bd3 {[%clk 0:02:43]}  Nf6 {[%clk 0:02:59]} 8. e5 {[%clk 0:02:41]}  Ng4 {[%clk 0:02:59]} 9. Nf3 {[%clk 0:02:38]}  Nxe3 {[%clk 0:02:58]} 10. Qxe3 {[%clk 0:02:38]}  e6 {[%clk 0:02:50]} 11. O-O {[%clk 0:02:27]}  O-O {[%clk 0:02:49]} 12. Rad1 {[%clk 0:02:22]}  Nd7 {[%clk 0:02:41]} 13. Kh1 {[%clk 0:02:17]}  Nb6 {[%clk 0:02:39]} 14. Ng5 {[%clk 0:02:11]}  Qe7 {[%clk 0:02:27]} 15. Rde1 {[%clk 0:02:00]}  Nd5 {[%clk 0:02:21]} 16. Nxd5 {[%clk 0:01:50]}  Bxd5 {[%clk 0:02:20]} 17. Be4 {[%clk 0:01:41]}  c6 {[%clk 0:01:56]} 18. b3 {[%clk 0:01:22]}  h6 {[%clk 0:01:49]} 19. Bxd5 {[%clk 0:01:20]}  cxd5 {[%clk 0:01:46]} 20. Nf3 {[%clk 0:01:15]}  Rac8 {[%clk 0:01:44]} 21. Qd3 {[%clk 0:01:06]}  Qc7 {[%clk 0:01:35]} 22. Re2 {[%clk 0:00:48]}  Qc3 {[%clk 0:01:34]} 23. Qd1 {[%clk 0:00:43]}  dxe5 {[%clk 0:01:24]} 24. Nxe5 {[%clk 0:00:33]}  a5 {[%clk 0:01:10]} 25. Rf3 {[%clk 0:00:25]}  Qc7 {[%clk 0:01:09]} 26. c3 {[%clk 0:00:22]}  b4 {[%clk 0:01:01]} 27. cxb4 {[%clk 0:00:20]}  axb4 {[%clk 0:01:01]} 28. h4 {[%clk 0:00:19]}  Qc1 {[%clk 0:00:58]} 29. Rf1 {[%clk 0:00:19]}  Qxd1 {[%clk 0:00:56]} 30. Rxd1 {[%clk 0:00:19]}  Rc3 {[%clk 0:00:55]} 31. Kh2 {[%clk 0:00:18]}  Rfc8 {[%clk 0:00:52]} 32. Rdd2 {[%clk 0:00:17]}  Rc1 {[%clk 0:00:51]} 33. g4 {[%clk 0:00:13]}  Rf1 {[%clk 0:00:47]} 34. Rf2 {[%clk 0:00:12]}  Rb1 {[%clk 0:00:40]} 35. h5 {[%clk 0:00:11]}  gxh5 {[%clk 0:00:38]} 36. gxh5 {[%clk 0:00:11]}  Rcc1 {[%clk 0:00:37]} 37. Rg2 {[%clk 0:00:11]}  Rh1+ {[%clk 0:00:34]} 38. Kg3 {[%clk 0:00:11]}  Rxh5 {[%clk 0:00:33]} 39. Nc6 {[%clk 0:00:10]}  Kh7 {[%clk 0:00:29]} 40. Nxb4 {[%clk 0:00:10]}  Bf8 {[%clk 0:00:20]} 41. Nc6 {[%clk 0:00:09]}  Bd6 {[%clk 0:00:20]} 42. Ne5 {[%clk 0:00:09]}  f6 {[%clk 0:00:18]} 43. Ng4 {[%clk 0:00:09]}  Kg7 {[%clk 0:00:16]} 44. Kf3 {[%clk 0:00:08]}  Rh3+ {[%clk 0:00:15]} 45. Rg3 {[%clk 0:00:07]}  Rxg3+ {[%clk 0:00:15]} 46. Kxg3 {[%clk 0:00:08]}  h5 {[%clk 0:00:14]} 47. Ne3 {[%clk 0:00:07]}  Re1 {[%clk 0:00:12]} 48. Kf2 {[%clk 0:00:06]}  Ra1 {[%clk 0:00:11]} 49. Kf3 {[%clk 0:00:06]}  Bb4 {[%clk 0:00:11]} 50. Rg2+ {[%clk 0:00:04]}  Kh6 {[%clk 0:00:10]} 0-1


[Site "https://www.chess.com"]

[Event "Titled Tuesday Blitz June 6 Late 2023"]
[White "Torres Dominguez, David"]
[Black "Melian, Juan Sebastian"]
[WhiteFideId "2220857"]
[BlackFideId "3706575"]
[WhiteElo "1999"]
[BlackElo "2092"]
[Result "0-1"]
[Round "6"]
[TimeControl "180+2"]
[Date "2023.06.07"]
[WhiteClock "0:00:06"]
[BlackClock "0:00:05"]
[Board "121"]

1. e4 {[%clk 0:02:24]}  d6 {[%clk 0:03:00]} 2. Nc3 {[%clk 0:02:21]}  g6 {[%clk 0:02:40]} 3. d4 {[%clk 0:02:12]}  Bg7 {[%clk 0:02:41]} 4. Bf4 {[%clk 0:02:11]}  a6 {[%clk 0:02:42]} 5. Qd2 {[%clk 0:02:10]}  b5 {[%clk 0:02:42]} 6. O-O-O {[%clk 0:02:05]}  Bb7 {[%clk 0:02:42]} 7. f3 {[%clk 0:02:05]}  Nd7 {[%clk 0:02:42]} 8. e5 {[%clk 0:02:03]}  Nb6 {[%clk 0:02:25]} 9. Bd3 {[%clk 0:01:52]}  e6 {[%clk 0:02:17]} 10. exd6 {[%clk 0:01:44]}  cxd6 {[%clk 0:02:18]} 11. Ne4 {[%clk 0:01:44]}  Bxe4 {[%clk 0:02:14]} 12. fxe4 {[%clk 0:01:41]}  Ne7 {[%clk 0:02:12]} 13. Bh6 {[%clk 0:01:37]}  O-O {[%clk 0:02:04]} 14. h4 {[%clk 0:01:36]}  f6 {[%clk 0:01:43]} 15. h5 {[%clk 0:01:33]}  Bxh6 {[%clk 0:01:43]} 16. Qxh6 {[%clk 0:01:32]}  g5 {[%clk 0:01:44]} 17. e5 {[%clk 0:01:29]}  Nf5 {[%clk 0:01:39]} 18. Bxf5 {[%clk 0:01:27]}  exf5 {[%clk 0:01:40]} 19. Nf3 {[%clk 0:01:20]}  Kh8 {[%clk 0:00:53]} 20. exf6 {[%clk 0:01:20]}  Rxf6 {[%clk 0:00:54]} 21. Qxg5 {[%clk 0:01:19]}  Nd5 {[%clk 0:00:49]} 22. Kb1 {[%clk 0:00:51]}  Qa5 {[%clk 0:00:45]} 23. Qd2 {[%clk 0:00:49]}  Qc7 {[%clk 0:00:44]} 24. h6 {[%clk 0:00:45]}  Rc8 {[%clk 0:00:42]} 25. Rhe1 {[%clk 0:00:36]}  b4 {[%clk 0:00:43]} 26. Re2 {[%clk 0:00:34]}  Qa5 {[%clk 0:00:38]} 27. Rde1 {[%clk 0:00:25]}  Rff8 {[%clk 0:00:33]} 28. Qd3 {[%clk 0:00:11]}  Qb6 {[%clk 0:00:23]} 29. Qb3 {[%clk 0:00:10]}  Qc6 {[%clk 0:00:21]} 30. Ng5 {[%clk 0:00:09]}  a5 {[%clk 0:00:08]} 31. Re6 {[%clk 0:00:09]}  a4 {[%clk 0:00:08]} 32. Qd3 {[%clk 0:00:09]}  b3 {[%clk 0:00:04]} 33. cxb3 {[%clk 0:00:09]}  axb3 {[%clk 0:00:05]} 34. axb3 {[%clk 0:00:07]}  Nf4 {[%clk 0:00:05]} 35. Qg3 {[%clk 0:00:06]}  Qc2+ {[%clk 0:00:04]} 36. Ka2 {[%clk 0:00:06]}  Ra8# {[%clk 0:00:05]} 0-1


[Site "https://www.chess.com"]